fUSD/lending_fUSD_20260624
["ID","MTS","AMOUNT","RATE_DAILY","PERIOD"]
[426297166,1782256239000,-4767.42201421,0.00016438,2]
[426297168,1782256239000,-4767.42201421,0.00016438,2]
[426297169,1782256239000,-4767.42201421,0.00016438,2]
[426297172,1782256239000,-900.0,0.00016438,2]
[426297178,1782256239000,-1993.101868,0.00016438,2]
[426297177,1782256239000,-151.0,0.00016438,2]
[426297171,1782256239000,-4767.42201421,0.00016438,2]
[426297161,1782256239000,-4767.42201422,0.00016438,2]
[426297173,1782256239000,-151.0,0.00016438,2]
[426297180,1782256239000,-1993.101868,0.00016438,2]
[426297174,1782256239000,-151.0,0.00016438,2]
[426297170,1782256239000,-4767.42201421,0.00016438,2]
[426297179,1782256239000,-1993.101868,0.00016438,2]
[426297175,1782256239000,-231.05,0.00016438,2]
[426297182,1782256239000,-1993.101868,0.00016438,2]
[426297183,1782256239000,-1993.101868,0.00016438,2]
[426297185,1782256239000,-1993.101868,0.00016438,2]
[426297181,1782256239000,-1993.101868,0.00016438,2]
[426297184,1782256239000,-1993.101868,0.00016438,2]
[426297186,1782256239000,-1993.101868,0.00016438,2]
[426297129,1782256239000,-1022.82089284,0.00016438,2]
[426297176,1782256239000,-151.0,0.00016438,2]
[426297160,1782256239000,-4767.42201422,0.00016438,2]
[426297187,1782256239000,-1993.101868,0.00016438,2]
[426297159,1782256239000,-4767.42201422,0.00016438,2]
[426297158,1782256239000,-4767.42201422,0.00016438,2]
[426297126,1782256239000,-1022.82089284,0.00016438,2]
[426297131,1782256239000,-4767.42201422,0.00016438,2]
[426297134,1782256239000,-4767.42201422,0.00016438,2]
[426297135,1782256239000,-4767.42201422,0.00016438,2]
[426297132,1782256239000,-4767.42201422,0.00016438,2]
[426297138,1782256239000,-4767.42201422,0.00016438,2]
[426297136,1782256239000,-4767.42201422,0.00016438,2]
[426297140,1782256239000,-4767.42201422,0.00016438,2]
[426297139,1782256239000,-4767.42201422,0.00016438,2]
[426297133,1782256239000,-4767.42201422,0.00016438,2]
[426297141,1782256239000,-4767.42201422,0.00016438,2]
[426297142,1782256239000,-4767.42201422,0.00016438,2]
[426297128,1782256239000,-1022.82089284,0.00016438,2]
[426297143,1782256239000,-4767.42201422,0.00016438,2]
[426297156,1782256239000,-4767.42201422,0.00016438,2]
[426297151,1782256239000,-4767.42201422,0.00016438,2]
[426297152,1782256239000,-4767.42201422,0.00016438,2]
[426297154,1782256239000,-4767.42201422,0.00016438,2]
[426297137,1782256239000,-4767.42201422,0.00016438,2]
[426297147,1782256239000,-4767.42201422,0.00016438,2]
[426297153,1782256239000,-4767.42201422,0.00016438,2]
[426297145,1782256239000,-4767.42201422,0.00016438,2]
[426297148,1782256239000,-4767.42201422,0.00016438,2]
[426297149,1782256239000,-4767.42201422,0.00016438,2]
[426297146,1782256239000,-4767.42201422,0.00016438,2]
[426297144,1782256239000,-4767.42201422,0.00016438,2]
[426297150,1782256239000,-4767.42201422,0.00016438,2]
[426297231,1782256240000,-151.0,0.00018174,2]
[426297229,1782256240000,-151.0,0.00018174,2]
[426297226,1782256240000,-517.33432276,0.00018174,2]
[426297222,1782256240000,-871.06772465,0.00018174,2]
[426297221,1782256240000,-155.58333597,0.00018174,2]
[426297225,1782256240000,-151.0,0.00018174,2]
[426297220,1782256240000,-151.0,0.00018174,2]
[426297218,1782256240000,-151.0,0.00018174,2]
[426297224,1782256240000,-197.08549854,0.00018174,2]
[426297227,1782256240000,-194.72792766,0.00018174,2]
[426297223,1782256240000,-151.0,0.00018174,2]
[426297232,1782256240000,-151.0,0.00018174,2]
[426297234,1782256240000,-200.0,0.00018174,2]
[426297228,1782256240000,-174.61919141,0.00018174,2]
[426297230,1782256240000,-151.0,0.00018174,2]
[426297236,1782256240000,-194.72792766,0.00018174,2]
[426297237,1782256240000,-151.0,0.00018174,2]
[426297235,1782256240000,-151.0,0.00018174,2]
[426297233,1782256240000,-644.79446245,0.00018174,2]
[426297238,1782256240000,-151.0,0.00018174,2]
[426297241,1782256240000,-670.58624095,0.00018174,2]
[426297245,1782256240000,-500.0,0.00018174,2]
[426297240,1782256240000,-1075.35358812,0.00018174,2]
[426297242,1782256240000,-151.0,0.00018174,2]
[426297219,1782256240000,-4888.88543764,0.00018174,2]
[426297239,1782256240000,-194.72792766,0.00018174,2]
[426297216,1782256240000,-255.32,0.00018102,2]
[426297196,1782256240000,-165.1,0.00016767,2]
[426297211,1782256240000,-48326.44240729,0.00018,2]
[426297244,1782256240000,-1934.38338736,0.00018174,2]
[426297192,1782256240000,-1000.0,0.000165,2]
[426297188,1782256240000,-1993.101868,0.00016438,2]
[426297191,1782256240000,-1127.0,0.00016471,2]
[426297189,1782256240000,-1993.101868,0.00016438,2]
[426297190,1782256240000,-250.0,0.00016438,4]
[426297193,1782256240000,-1734.62772924,0.0001653,2]
[426297197,1782256240000,-195.0,0.000168,3]
[426297203,1782256240000,-1127.0,0.00017338,2]
[426297199,1782256240000,-1243.14,0.00016931,2]
[426297195,1782256240000,-171.22,0.00016712,2]
[426297194,1782256240000,-255.32,0.00016594,2]
[426297210,1782256240000,-1243.65868844,0.0001789,2]
[426297202,1782256240000,-1798.80895522,0.00017078,2]
[426297201,1782256240000,-717.80530004,0.00017067,2]
[426297198,1782256240000,-545.02333442,0.00016915,2]
[426297204,1782256240000,-310.63369199,0.00017342,2]
[426297205,1782256240000,-1204.7,0.00017424,2]
[426297208,1782256240000,-795.76460638,0.000177,2]
[426297207,1782256240000,-1865.36488656,0.00017626,2]
[426297214,1782256240000,-350.0,0.00018,2]
[426297213,1782256240000,-15880.22,0.00018,2]
[426297212,1782256240000,-24466.07,0.00018,2]
[426297206,1782256240000,-1538.78,0.000175,2]
[426297209,1782256240000,-250.0,0.00017808,6]
[426297215,1782256240000,-1166.25,0.00018082,2]
[426297200,1782256240000,-566.04,0.00016932,2]
[426297248,1782256240000,-151.0,0.00018174,2]
[426297217,1782256240000,-500.0,0.00018174,2]
[426297251,1782256240000,-151.0,0.00018174,2]
[426297281,1782256240000,-152.0,0.00018174,2]
[426297288,1782256240000,-500.0,0.00018174,2]
[426297287,1782256240000,-500.0,0.00018174,2]
[426297285,1782256240000,-151.0,0.00018174,2]
[426297282,1782256240000,-500.0,0.00018174,2]
[426297284,1782256240000,-151.0,0.00018174,2]
[426297286,1782256240000,-152.0,0.00018174,2]
[426297289,1782256240000,-151.0,0.00018174,2]
[426297283,1782256240000,-500.0,0.00018174,2]
[426297290,1782256240000,-151.0,0.00018174,2]
[426297301,1782256240000,-500.0,0.00018174,2]
[426297296,1782256240000,-500.0,0.00018174,2]
[426297279,1782256240000,-500.0,0.00018174,2]
[426297299,1782256240000,-151.0,0.00018174,2]
[426297295,1782256240000,-151.0,0.00018174,2]
[426297292,1782256240000,-152.0,0.00018174,2]
[426297297,1782256240000,-152.0,0.00018174,2]
[426297298,1782256240000,-500.0,0.00018174,2]
[426297294,1782256240000,-151.0,0.00018174,2]
[426297291,1782256240000,-500.0,0.00018174,2]
[426297300,1782256240000,-151.0,0.00018174,2]
[426297302,1782256240000,-152.0,0.00018174,2]
[426297304,1782256240000,-151.0,0.00018174,2]
[426297307,1782256240000,-152.0,0.00018174,2]
[426297305,1782256240000,-151.0,0.00018174,2]
[426297246,1782256240000,-8882.6885148,0.00018174,2]
[426297293,1782256240000,-500.0,0.00018174,2]
[426297280,1782256240000,-151.0,0.00018174,2]
[426297303,1782256240000,-500.0,0.00018174,2]
[426297276,1782256240000,-152.0,0.00018174,2]
[426297274,1782256240000,-151.0,0.00018174,2]
[426297247,1782256240000,-157.39890755,0.00018174,2]
[426297249,1782256240000,-152.0,0.00018174,2]
[426297250,1782256240000,-194.72792766,0.00018174,2]
[426297263,1782256240000,-152.0,0.00018174,2]
[426297253,1782256240000,-500.0,0.00018174,2]
[426297252,1782256240000,-500.0,0.00018174,2]
[426297267,1782256240000,-500.0,0.00018174,2]
[426297265,1782256240000,-500.0,0.00018174,2]
[426297256,1782256240000,-151.0,0.00018174,2]
[426297257,1782256240000,-152.0,0.00018174,2]
[426297260,1782256240000,-500.0,0.00018174,2]
[426297261,1782256240000,-151.0,0.00018174,2]
[426297243,1782256240000,-151.0,0.00018174,2]
[426297259,1782256240000,-151.0,0.00018174,2]
[426297258,1782256240000,-500.0,0.00018174,2]
[426297275,1782256240000,-500.0,0.00018174,2]
[426297271,1782256240000,-152.0,0.00018174,2]
[426297270,1782256240000,-151.0,0.00018174,2]
[426297269,1782256240000,-194.72792766,0.00018174,2]
[426297306,1782256240000,-500.0,0.00018174,2]
[426297277,1782256240000,-500.0,0.00018174,2]
[426297272,1782256240000,-500.0,0.00018174,2]
[426297273,1782256240000,-151.0,0.00018174,2]
[426297268,1782256240000,-151.0,0.00018174,2]
[426297255,1782256240000,-578.20924308,0.00018174,2]
[426297278,1782256240000,-151.0,0.00018174,2]
[426297344,1782256241000,-350.94877708,0.000184,2]
[426297342,1782256241000,-215.71060911,0.000184,2]
[426297350,1782256241000,-151.0,0.00018449,2]
[426297341,1782256241000,-10062.57573537,0.000184,2]
[426297339,1782256241000,-8537.97007164,0.000184,2]
[426297336,1782256241000,-1990.31059825,0.000184,2]
[426297337,1782256241000,-174.52983839,0.000184,2]
[426297345,1782256241000,-182.18140645,0.000184,2]
[426297335,1782256241000,-205.98672192,0.000184,2]
[426297340,1782256241000,-169.89889698,0.000184,2]
[426297334,1782256241000,-1610.8831814,0.000184,2]
[426297352,1782256241000,-151.0,0.00018504,2]
[426297347,1782256241000,-4888.88543764,0.00018448,2]
[426297346,1782256241000,-1138.6,0.0001841,2]
[426297348,1782256241000,-517.33432276,0.00018449,2]
[426297349,1782256241000,-151.0,0.00018449,2]
[426297351,1782256241000,-517.33432276,0.00018504,2]
[426297353,1782256241000,-151.0,0.00018504,2]
[426297354,1782256241000,-517.33432276,0.00018559,2]
[426297356,1782256241000,-151.0,0.00018559,2]
[426297357,1782256241000,-500.0,0.00018576,2]
[426297331,1782256241000,-151.0,0.00018394,2]
[426297355,1782256241000,-151.0,0.00018559,2]
[426297343,1782256241000,-169.85301842,0.000184,2]
[426297333,1782256241000,-9869.97614784,0.000184,2]
[426297319,1782256241000,-151.0,0.00018229,2]
[426297327,1782256241000,-151.0,0.00018339,2]
[426297358,1782256241000,-2000.0,0.00018576,2]
[426297313,1782256241000,-151.0,0.00018174,2]
[426297308,1782256241000,-500.0,0.00018174,2]
[426297309,1782256241000,-500.0,0.00018174,2]
[426297310,1782256241000,-151.0,0.00018174,2]
[426297311,1782256241000,-152.0,0.00018174,2]
[426297312,1782256241000,-500.0,0.00018174,2]
[426297314,1782256241000,-152.0,0.00018174,2]
[426297318,1782256241000,-517.33432276,0.00018229,2]
[426297316,1782256241000,-151.0,0.00018174,2]
[426297321,1782256241000,-1127.0,0.00018251,2]
[426297317,1782256241000,-717.80530004,0.00018226,2]
[426297315,1782256241000,-500.0,0.00018174,2]
[426297320,1782256241000,-151.0,0.00018229,2]
[426297325,1782256241000,-4081.47383461,0.00018318,5]
[426297323,1782256241000,-151.0,0.00018284,2]
[426297324,1782256241000,-151.0,0.00018284,2]
[426297326,1782256241000,-517.33432276,0.00018339,2]
[426297322,1782256241000,-517.33432276,0.00018284,2]
[426297328,1782256241000,-151.0,0.00018339,2]
[426297338,1782256241000,-169.87728653,0.000184,2]
[426297329,1782256241000,-517.33432276,0.00018394,2]
[426297330,1782256241000,-151.0,0.00018394,2]
[426297332,1782256241000,-170.3844487,0.000184,2]
[426297360,1782256241000,-9869.97614784,0.000186,2]
[426297359,1782256241000,-170.3844487,0.000186,2]
[426297400,1782256241000,-151.0,0.00018724,2]
[426297390,1782256241000,-201.93286098,0.00018722,2]
[426297389,1782256241000,-200.0,0.00018722,2]
[426297391,1782256241000,-1075.35358812,0.00018722,2]
[426297392,1782256241000,-201.93286098,0.00018722,2]
[426297393,1782256241000,-151.0,0.00018722,2]
[426297402,1782256241000,-151.0,0.00018779,2]
[426297396,1782256241000,-157.39890755,0.00018722,2]
[426297398,1782256241000,-517.33432276,0.00018724,2]
[426297399,1782256241000,-151.0,0.00018724,2]
[426297401,1782256241000,-517.33432276,0.00018779,2]
[426297406,1782256241000,-1990.31059825,0.000188,2]
[426297407,1782256241000,-174.52983839,0.000188,2]
[426297403,1782256241000,-151.0,0.00018779,2]
[426297397,1782256241000,-201.93286098,0.00018722,2]
[426297404,1782256241000,-9869.97614784,0.000188,2]
[426297405,1782256241000,-1610.8831814,0.000188,2]
[426297409,1782256241000,-8537.97007164,0.000188,2]
[426297408,1782256241000,-169.87728653,0.000188,2]
[426297410,1782256241000,-169.89889698,0.000188,2]
[426297412,1782256241000,-169.85301842,0.000188,2]
[426297413,1782256241000,-350.94877708,0.000188,2]
[426297411,1782256241000,-10062.57573537,0.000188,2]
[426297371,1782256241000,-350.94877708,0.000186,2]
[426297387,1782256241000,-151.0,0.00018722,2]
[426297386,1782256241000,-181.08010149,0.00018722,2]
[426297388,1782256241000,-668.65185756,0.00018722,2]
[426297394,1782256241000,-2005.9555727,0.00018722,2]
[426297361,1782256241000,-1610.8831814,0.000186,2]
[426297370,1782256241000,-169.85301842,0.000186,2]
[426297363,1782256241000,-1990.31059825,0.000186,2]
[426297362,1782256241000,-205.98672192,0.000186,2]
[426297369,1782256241000,-215.71060911,0.000186,2]
[426297367,1782256241000,-169.89889698,0.000186,2]
[426297364,1782256241000,-174.52983839,0.000186,2]
[426297385,1782256241000,-201.93286098,0.00018722,2]
[426297368,1782256241000,-10062.57573537,0.000186,2]
[426297366,1782256241000,-8537.97007164,0.000186,2]
[426297372,1782256241000,-157.301191,0.000186,2]
[426297375,1782256241000,-151.0,0.00018614,2]
[426297378,1782256241000,-151.0,0.00018669,2]
[426297365,1782256241000,-169.87728653,0.000186,2]
[426297376,1782256241000,-545.02333442,0.0001866,2]
[426297373,1782256241000,-517.33432276,0.00018614,2]
[426297374,1782256241000,-151.0,0.00018614,2]
[426297380,1782256241000,-518.5,0.00018722,2]
[426297381,1782256241000,-155.58333597,0.00018722,2]
[426297377,1782256241000,-517.33432276,0.00018669,2]
[426297382,1782256241000,-4888.88543764,0.00018722,2]
[426297379,1782256241000,-151.0,0.00018669,2]
[426297395,1782256241000,-9211.34798984,0.00018722,2]
[426297383,1782256241000,-871.06772465,0.00018722,2]
[426297384,1782256241000,-197.08549854,0.00018722,2]
[426297454,1782256242000,-1127.0,0.00019163,2]
[426297451,1782256242000,-350.94877708,0.000191,2]
[426297456,1782256242000,-179.99432589,0.00019178,2]
[426297452,1782256242000,-500.0,0.00019143,2]
[426297447,1782256242000,-1990.31059825,0.000191,2]
[426297446,1782256242000,-1610.8831814,0.000191,2]
[426297453,1782256242000,-200.0,0.00019146,2]
[426297450,1782256242000,-10062.57573537,0.000191,2]
[426297448,1782256242000,-8537.97007164,0.000191,2]
[426297439,1782256242000,-1993.101868,0.00019,2]
[426297457,1782256242000,-179.99432589,0.00019178,2]
[426297449,1782256242000,-169.89889698,0.000191,2]
[426297455,1782256242000,-151.44105201,0.00019178,2]
[426297472,1782256242000,-159.24,0.00019223,2]
[426297459,1782256242000,-3000.0,0.00019178,7]
[426297469,1782256242000,-151.0,0.00019178,2]
[426297461,1782256242000,-1000.0,0.00019178,17]
[426297462,1782256242000,-151.0,0.00019178,2]
[426297460,1782256242000,-3000.0,0.00019178,12]
[426297466,1782256242000,-151.0,0.00019178,2]
[426297464,1782256242000,-151.0,0.00019178,2]
[426297463,1782256242000,-151.0,0.00019178,2]
[426297465,1782256242000,-151.0,0.00019178,2]
[426297468,1782256242000,-151.0,0.00019178,2]
[426297467,1782256242000,-151.0,0.00019178,2]
[426297470,1782256242000,-250.0,0.00019178,8]
[426297442,1782256242000,-645.664511,0.00019,2]
[426297458,1782256242000,-3000.0,0.00019178,2]
[426297441,1782256242000,-645.664511,0.00019,2]
[426297414,1782256242000,-645.664511,0.000188,2]
[426297438,1782256242000,-1993.101868,0.00019,2]
[426297420,1782256242000,-151.0,0.00018834,2]
[426297419,1782256242000,-517.33432287,0.00018834,2]
[426297418,1782256242000,-163.66062104,0.00018803,2]
[426297417,1782256242000,-645.664511,0.000188,2]
[426297415,1782256242000,-645.664511,0.000188,2]
[426297416,1782256242000,-645.664511,0.000188,2]
[426297421,1782256242000,-151.0,0.00018834,2]
[426297425,1782256242000,-160.0,0.00019,2]
[426297424,1782256242000,-5175.63956764,0.00019,2]
[426297422,1782256242000,-4888.88543764,0.00018996,2]
[426297423,1782256242000,-155.100243,0.00018997,2]
[426297426,1782256242000,-752.18938995,0.00019,2]
[426297440,1782256242000,-645.664511,0.00019,2]
[426297431,1782256242000,-8537.97007164,0.00019,2]
[426297432,1782256242000,-169.89889698,0.00019,2]
[426297428,1782256242000,-9869.97614784,0.00019,2]
[426297429,1782256242000,-1610.8831814,0.00019,2]
[426297427,1782256242000,-680762.42476019,0.00019,2]
[426297434,1782256242000,-350.94877708,0.00019,2]
[426297444,1782256242000,-365.95417538,0.0001901,7]
[426297445,1782256242000,-9869.97614784,0.000191,2]
[426297433,1782256242000,-10062.57573537,0.00019,2]
[426297436,1782256242000,-1993.101868,0.00019,2]
[426297435,1782256242000,-3786.21065022,0.00019,2]
[426297443,1782256242000,-645.664517,0.00019,2]
[426297437,1782256242000,-1993.101868,0.00019,2]
[426297430,1782256242000,-1990.31059825,0.00019,2]
[426297475,1782256242000,-151.0,0.00019239,2]
[426297480,1782256242000,-299.0,0.00019239,2]
[426297482,1782256242000,-249.242,0.00019239,2]
[426297524,1782256242000,-500.0,0.00019355,7]
[426297514,1782256242000,-383.0,0.00019317,2]
[426297513,1782256242000,-1362.907,0.00019317,2]
[426297515,1782256242000,-1280.274,0.00019317,2]
[426297517,1782256242000,-6083.0,0.00019318,2]
[426297516,1782256242000,-1231.662,0.00019318,2]
[426297523,1782256242000,-500.0,0.00019355,7]
[426297521,1782256242000,-500.0,0.00019355,7]
[426297518,1782256242000,-3648.0,0.00019318,2]
[426297520,1782256242000,-500.0,0.00019355,7]
[426297519,1782256242000,-182.68,0.00019355,7]
[426297522,1782256242000,-500.0,0.00019355,7]
[426297509,1782256242000,-1610.8831814,0.000193,2]
[426297527,1782256242000,-717.80530004,0.00019384,2]
[426297528,1782256242000,-266475.67078589,0.000194,2]
[426297526,1782256242000,-873.63,0.00019355,7]
[426297529,1782256242000,-2371.0,0.000194,5]
[426297533,1782256242000,-816.0,0.00019452,2]
[426297531,1782256242000,-151.0,0.000194,2]
[426297534,1782256242000,-9869.97614784,0.000195,2]
[426297535,1782256242000,-1610.8831814,0.000195,2]
[426297532,1782256242000,-2368.0,0.000194,5]
[426297536,1782256242000,-1990.31059825,0.000195,2]
[426297530,1782256242000,-151.0,0.000194,2]
[426297538,1782256242000,-10062.57573537,0.000195,2]
[426297481,1782256242000,-175.296,0.00019239,2]
[426297525,1782256242000,-500.0,0.00019355,7]
[426297507,1782256242000,-209.40437684,0.0001927,2]
[426297537,1782256242000,-8537.97007164,0.000195,2]
[426297508,1782256242000,-9869.97614784,0.000193,2]
[426297474,1782256242000,-150.0,0.00019239,2]
[426297473,1782256242000,-250.0,0.00019239,2]
[426297471,1782256242000,-1538.78,0.000192,2]
[426297477,1782256242000,-150.0,0.00019239,2]
[426297539,1782256242000,-1993.101868,0.00019542,2]
[426297484,1782256242000,-250.0,0.00019239,2]
[426297497,1782256242000,-151.0,0.0001927,2]
[426297486,1782256242000,-168.413,0.00019239,2]
[426297505,1782256242000,-2080.17592889,0.0001927,2]
[426297496,1782256242000,-187.78006524,0.0001927,2]
[426297499,1782256242000,-515.47408635,0.0001927,2]
[426297487,1782256242000,-3562.944,0.00019239,2]
[426297490,1782256242000,-871.06772465,0.0001927,2]
[426297498,1782256242000,-200.0,0.0001927,2]
[426297495,1782256242000,-209.40437684,0.0001927,2]
[426297506,1782256242000,-157.39890764,0.0001927,2]
[426297491,1782256242000,-4888.88543764,0.0001927,2]
[426297510,1782256242000,-1990.31059825,0.000193,2]
[426297500,1782256242000,-209.40437684,0.0001927,2]
[426297502,1782256242000,-209.40437684,0.0001927,2]
[426297503,1782256242000,-151.0,0.0001927,2]
[426297504,1782256242000,-9552.16786547,0.0001927,2]
[426297511,1782256242000,-8537.97007164,0.000193,2]
[426297501,1782256242000,-1075.35358812,0.0001927,2]
[426297489,1782256242000,-155.58333598,0.0001927,2]
[426297488,1782256242000,-537.6845,0.0001927,2]
[426297493,1782256242000,-197.08549854,0.0001927,2]
[426297512,1782256242000,-10062.57573537,0.000193,2]
[426297582,1782256243000,-40597.0,0.0002,2]
[426297583,1782256243000,-721.15,0.0002,7]
[426297578,1782256243000,-3541.45,0.00019968,2]
[426297574,1782256243000,-180824.6275791,0.00019953,2]
[426297571,1782256243000,-8537.97007164,0.000199,2]
[426297577,1782256243000,-506.63,0.00019968,2]
[426297573,1782256243000,-15975.43461164,0.0001995,15]
[426297567,1782256243000,-217.15233878,0.00019818,2]
[426297569,1782256243000,-1610.8831814,0.000199,2]
[426297576,1782256243000,-59898.27,0.00019968,2]
[426297579,1782256243000,-1358.44,0.00019968,2]
[426297592,1782256243000,-2680.0,0.0002,2]
[426297575,1782256243000,-1350.1085957,0.00019955,2]
[426297580,1782256243000,-2000.0,0.00019982,7]
[426297585,1782256243000,-288.67407521,0.0002,2]
[426297595,1782256243000,-359.0,0.0002,2]
[426297586,1782256243000,-201.23757348,0.0002,2]
[426297584,1782256243000,-1960.1151131,0.0002,2]
[426297587,1782256243000,-426.63485121,0.0002,2]
[426297591,1782256243000,-1840.0,0.0002,2]
[426297589,1782256243000,-249.0,0.0002,2]
[426297588,1782256243000,-1113.44088253,0.0002,2]
[426297590,1782256243000,-160.0,0.0002,2]
[426297570,1782256243000,-1990.31059825,0.000199,2]
[426297581,1782256243000,-3004.19797616,0.0002,7]
[426297568,1782256243000,-9869.97614784,0.000199,2]
[426297559,1782256243000,-151.0,0.00019818,2]
[426297572,1782256243000,-10062.57573537,0.000199,2]
[426297593,1782256243000,-511.69691555,0.0002,2]
[426297544,1782256243000,-4888.88543764,0.00019544,2]
[426297541,1782256243000,-1993.101868,0.00019542,2]
[426297543,1782256243000,-201.93286098,0.00019543,2]
[426297542,1782256243000,-1993.101878,0.00019542,2]
[426297546,1782256243000,-1610.8831814,0.000197,2]
[426297540,1782256243000,-1993.101868,0.00019542,2]
[426297545,1782256243000,-9869.97614784,0.000197,2]
[426297547,1782256243000,-1990.31059825,0.000197,2]
[426297548,1782256243000,-8537.97007164,0.000197,2]
[426297551,1782256243000,-767.0,0.00019726,2]
[426297557,1782256243000,-194.72792766,0.00019818,2]
[426297565,1782256243000,-151.0,0.00019818,2]
[426297552,1782256243000,-767.0,0.00019726,2]
[426297553,1782256243000,-557.5788265,0.00019818,2]
[426297549,1782256243000,-10062.57573537,0.000197,2]
[426297550,1782256243000,-500.0,0.00019717,2]
[426297560,1782256243000,-200.0,0.00019818,2]
[426297554,1782256243000,-871.06772465,0.00019818,2]
[426297555,1782256243000,-197.08549854,0.00019818,2]
[426297556,1782256243000,-4888.88543764,0.00019818,2]
[426297566,1782256243000,-2157.14243826,0.00019818,2]
[426297561,1782256243000,-217.15233878,0.00019818,2]
[426297562,1782256243000,-1075.35358812,0.00019818,2]
[426297564,1782256243000,-217.15233878,0.00019818,2]
[426297563,1782256243000,-9905.59807649,0.00019818,2]
[426297558,1782256243000,-217.15233878,0.00019818,2]
[426297602,1782256243000,-154.0,0.0002,2]
[426297606,1782256243000,-631.0,0.0002,2]
[426297599,1782256243000,-1370.0,0.0002,2]
[426297631,1782256243000,-201.93286098,0.00020366,2]
[426297633,1782256243000,-4888.88543764,0.00020366,2]
[426297638,1782256243000,-1075.35358812,0.00020366,2]
[426297635,1782256243000,-200.0,0.00020366,2]
[426297637,1782256243000,-10272.10520532,0.00020366,2]
[426297642,1782256243000,-225.18697532,0.00020366,2]
[426297634,1782256243000,-151.0,0.00020366,2]
[426297636,1782256243000,-225.18697532,0.00020366,2]
[426297632,1782256243000,-225.18697532,0.00020366,2]
[426297640,1782256243000,-151.0,0.00020366,2]
[426297639,1782256243000,-225.18697532,0.00020366,2]
[426297641,1782256243000,-2236.95670847,0.00020366,2]
[426297644,1782256243000,-1960.1151131,0.000204,2]
[426297651,1782256243000,-767.0,0.00020547,2]
[426297650,1782256243000,-767.0,0.00020547,2]
[426297643,1782256243000,-1138.6,0.00020381,2]
[426297596,1782256243000,-304.0,0.0002,2]
[426297646,1782256243000,-1113.44088253,0.000204,2]
[426297652,1782256243000,-250.0,0.00020548,10]
[426297647,1782256243000,-545.02333442,0.00020404,2]
[426297653,1782256243000,-11111.72,0.00020548,2]
[426297649,1782256243000,-717.80530004,0.00020542,2]
[426297648,1782256243000,-10062.57573537,0.000205,2]
[426297654,1782256243000,-1960.1151131,0.000206,2]
[426297655,1782256243000,-426.63485121,0.000206,2]
[426297622,1782256243000,-10062.57573537,0.000203,2]
[426297627,1782256243000,-500.0,0.00020308,2]
[426297645,1782256243000,-426.63485121,0.000204,2]
[426297626,1782256243000,-290.942729,0.000203,2]
[426297624,1782256243000,-151.0,0.000203,2]
[426297600,1782256243000,-406.0,0.0002,2]
[426297598,1782256243000,-8224.43,0.0002,5]
[426297601,1782256243000,-1968.0,0.0002,2]
[426297597,1782256243000,-50000.0,0.0002,7]
[426297604,1782256243000,-400.0,0.0002,2]
[426297605,1782256243000,-216.39158367,0.0002,7]
[426297610,1782256243000,-1610.8831814,0.000201,2]
[426297611,1782256243000,-1990.31059825,0.000201,2]
[426297608,1782256243000,-4888.88543764,0.00020092,2]
[426297612,1782256243000,-8537.97007164,0.000201,2]
[426297609,1782256243000,-9869.97614784,0.000201,2]
[426297603,1782256243000,-834.0,0.0002,2]
[426297615,1782256243000,-610.0,0.00020136,2]
[426297621,1782256243000,-785.0,0.00020274,2]
[426297607,1782256243000,-12208.21,0.0002,2]
[426297619,1782256243000,-426.63485121,0.000202,2]
[426297630,1782256243000,-197.08549854,0.00020366,2]
[426297617,1782256243000,-1960.1151131,0.000202,2]